[Event "Titled Tuesday Blitz April 05 Late 2022"]
[White "Morris-Suzuki, Sophie"]
[Black "Andrews, Todd"]
[WhiteFideId "30922615"]
[BlackFideId "2012456"]
[WhiteElo "2509"]
[BlackElo "2312"]
[Result "0-1"]
[Round "09"]
[TimeControl "180+1"]
[Date "2022.04.06"]
[WhiteClock "0:00:01"]
[BlackClock "0:00:07"]

1. d4 {[%clk 0:02:59]}  Nf6 {[%clk 0:02:59]} 2. c4 {[%clk 0:03:00]}  c5 {[%clk 0:03:00]} 3. d5 {[%clk 0:03:00]}  b5 {[%clk 0:03:00]} 4. cxb5 {[%clk 0:03:00]}  a6 {[%clk 0:03:01]} 5. b6 {[%clk 0:03:00]}  e6 {[%clk 0:03:01]} 6. Nc3 {[%clk 0:02:59]}  Nxd5 {[%clk 0:03:02]} 7. Nxd5 {[%clk 0:02:58]}  exd5 {[%clk 0:03:03]} 8. Qxd5 {[%clk 0:02:55]}  Nc6 {[%clk 0:03:03]} 9. e4 {[%clk 0:02:50]}  Be7 {[%clk 0:03:04]} 10. Bc4 {[%clk 0:02:45]}  O-O {[%clk 0:03:03]} 11. Nf3 {[%clk 0:02:44]}  Rb8 {[%clk 0:03:03]} 12. O-O {[%clk 0:02:33]}  Rxb6 {[%clk 0:03:03]} 13. b3 {[%clk 0:02:24]}  d6 {[%clk 0:03:00]} 14. Bb2 {[%clk 0:02:17]}  Be6 {[%clk 0:03:00]} 15. Qd3 {[%clk 0:02:16]}  Nb4 {[%clk 0:02:48]} 16. Qe2 {[%clk 0:02:12]}  Bf6 {[%clk 0:02:42]} 17. Bxe6 {[%clk 0:01:59]}  fxe6 {[%clk 0:02:41]} 18. e5 {[%clk 0:01:59]}  dxe5 {[%clk 0:02:35]} 19. Rad1 {[%clk 0:01:53]}  Rd6 {[%clk 0:01:53]} 20. Bxe5 {[%clk 0:01:49]}  Bxe5 {[%clk 0:01:53]} 21. Nxe5 {[%clk 0:01:50]}  Rf5 {[%clk 0:01:36]} 22. Nc4 {[%clk 0:01:45]}  Rxd1 {[%clk 0:01:28]} 23. Rxd1 {[%clk 0:01:42]}  Qf6 {[%clk 0:01:17]} 24. Re1 {[%clk 0:01:02]}  Rd5 {[%clk 0:01:04]} 25. Ne3 {[%clk 0:00:50]}  Rd6 {[%clk 0:00:57]} 26. a3 {[%clk 0:00:28]}  Nd3 {[%clk 0:00:51]} 27. Nc4 {[%clk 0:00:28]}  Nf4 {[%clk 0:00:33]} 28. Qe4 {[%clk 0:00:25]}  Rd4 {[%clk 0:00:28]} 29. Qa8+ {[%clk 0:00:21]}  Qf8 {[%clk 0:00:25]} 30. Qxf8+ {[%clk 0:00:14]}  Kxf8 {[%clk 0:00:26]} 31. g3 {[%clk 0:00:13]}  Nh3+ {[%clk 0:00:15]} 32. Kg2 {[%clk 0:00:13]}  Ng5 {[%clk 0:00:16]} 33. h4 {[%clk 0:00:14]}  Ne4 {[%clk 0:00:16]} 34. f3 {[%clk 0:00:10]}  Nd2 {[%clk 0:00:14]} 35. Rxe6 {[%clk 0:00:08]}  Nxc4 {[%clk 0:00:14]} 36. bxc4 {[%clk 0:00:09]}  Rxc4 {[%clk 0:00:15]} 37. Rxa6 {[%clk 0:00:09]}  Rc2+ {[%clk 0:00:15]} 38. Kh3 {[%clk 0:00:09]}  Kf7 {[%clk 0:00:12]} 39. Kg4 {[%clk 0:00:07]}  Ra2 {[%clk 0:00:08]} 40. Kf5 {[%clk 0:00:06]}  g6+ {[%clk 0:00:08]} 41. Kg5 {[%clk 0:00:06]}  c4 {[%clk 0:00:07]} 42. Ra7+ {[%clk 0:00:05]}  Ke6 {[%clk 0:00:08]} 43. Rxh7 {[%clk 0:00:04]}  Rxa3 {[%clk 0:00:08]} 44. f4 {[%clk 0:00:04]}  Rxg3+ {[%clk 0:00:07]} 45. Kh6 {[%clk 0:00:04]}  Kd5 {[%clk 0:00:07]} 46. Rd7+ {[%clk 0:00:03]}  Ke4 {[%clk 0:00:07]} 47. Rc7 {[%clk 0:00:02]}  c3 {[%clk 0:00:07]} 48. h5 {[%clk 0:00:02]}  gxh5 {[%clk 0:00:07]} 49. Kxh5 {[%clk 0:00:01]}  Kxf4 {[%clk 0:00:07]} 0-1


[Site "https://www.chess.com"]

[Event "Titled Tuesday Blitz April 05 Late 2022"]
[White "Ovetchkin, Roman"]
[Black "Weetik, Vjacheslav"]
[WhiteFideId "4119991"]
[BlackFideId "4153472"]
[WhiteElo "2409"]
[BlackElo "2469"]
[Result "1-0"]
[Round "09"]
[TimeControl "180+1"]
[Date "2022.04.05"]
[WhiteClock "0:00:14"]
[BlackClock "0:00:03"]

1. d4 {[%clk 0:03:00]}  d5 {[%clk 0:02:55]} 2. c4 {[%clk 0:03:00]}  e6 {[%clk 0:02:55]} 3. Nf3 {[%clk 0:03:00]}  Nf6 {[%clk 0:02:51]} 4. g3 {[%clk 0:03:00]}  Be7 {[%clk 0:02:51]} 5. Bg2 {[%clk 0:03:00]}  O-O {[%clk 0:02:51]} 6. Qc2 {[%clk 0:02:56]}  b6 {[%clk 0:02:31]} 7. cxd5 {[%clk 0:02:55]}  exd5 {[%clk 0:02:29]} 8. O-O {[%clk 0:02:53]}  Bb7 {[%clk 0:02:23]} 9. Nc3 {[%clk 0:02:49]}  Na6 {[%clk 0:02:18]} 10. Bg5 {[%clk 0:02:34]}  h6 {[%clk 0:02:11]} 11. Bxf6 {[%clk 0:02:33]}  Bxf6 {[%clk 0:02:12]} 12. Rfd1 {[%clk 0:02:29]}  Re8 {[%clk 0:02:10]} 13. Rac1 {[%clk 0:02:25]}  c6 {[%clk 0:02:08]} 14. e4 {[%clk 0:02:16]}  Nb4 {[%clk 0:01:57]} 15. Qb1 {[%clk 0:02:07]}  dxe4 {[%clk 0:01:47]} 16. Nxe4 {[%clk 0:02:05]}  Be7 {[%clk 0:01:40]} 17. Ne5 {[%clk 0:01:58]}  Rc8 {[%clk 0:01:39]} 18. Nc3 {[%clk 0:01:43]}  Qd6 {[%clk 0:01:26]} 19. a3 {[%clk 0:01:34]}  Nd5 {[%clk 0:01:26]} 20. Qa2 {[%clk 0:01:33]}  Bg5 {[%clk 0:00:52]} 21. f4 {[%clk 0:00:34]}  Be7 {[%clk 0:00:52]} 22. Ne4 {[%clk 0:00:33]}  Qe6 {[%clk 0:00:37]} 23. Nc3 {[%clk 0:00:27]}  Ne3 {[%clk 0:00:31]} 24. Qxe6 {[%clk 0:00:25]}  fxe6 {[%clk 0:00:32]} 25. Bh3 {[%clk 0:00:24]}  Bf6 {[%clk 0:00:28]} 26. Re1 {[%clk 0:00:24]}  Nf5 {[%clk 0:00:28]} 27. Rcd1 {[%clk 0:00:23]}  c5 {[%clk 0:00:27]} 28. dxc5 {[%clk 0:00:23]}  Rxc5 {[%clk 0:00:27]} 29. Ne4 {[%clk 0:00:19]}  Rc7 {[%clk 0:00:11]} 30. Nxf6+ {[%clk 0:00:19]}  gxf6 {[%clk 0:00:12]} 31. Nd3 {[%clk 0:00:19]}  Nd4 {[%clk 0:00:10]} 32. Re3 {[%clk 0:00:15]}  Rc2 {[%clk 0:00:07]} 33. Ne1 {[%clk 0:00:15]}  Ne2+ {[%clk 0:00:06]} 34. Kf1 {[%clk 0:00:15]}  Rxb2 {[%clk 0:00:05]} 35. Rxe2 {[%clk 0:00:15]}  Ba6 {[%clk 0:00:06]} 36. Bg4 {[%clk 0:00:16]}  f5 {[%clk 0:00:04]} 37. Bh5 {[%clk 0:00:16]}  Rc8 {[%clk 0:00:05]} 38. Nd3 {[%clk 0:00:16]}  Rb3 {[%clk 0:00:04]} 39. Red2 {[%clk 0:00:13]}  Rcc3 {[%clk 0:00:03]} 40. Be2 {[%clk 0:00:14]}  Rxa3 {[%clk 0:00:04]} 41. Ne5 {[%clk 0:00:14]}  Bxe2+ {[%clk 0:00:03]} 42. Kxe2 {[%clk 0:00:14]}  Re3+ {[%clk 0:00:03]} 43. Kf2 {[%clk 0:00:14]} 1-0


[Site "https://www.chess.com"]

[Event "Titled Tuesday Blitz April 05 Late 2022"]
[White "Papp, Levente"]
[Black "Prohorov, Olexandr"]
[WhiteFideId "751243"]
[BlackFideId "14105578"]
[WhiteElo "2605"]
[BlackElo "2439"]
[Result "1-0"]
[Round "09"]
[TimeControl "180+1"]
[Date "2022.04.06"]
[WhiteClock "0:00:23"]
[BlackClock "0:00:01"]

1. d4 {[%clk 0:03:00]}  Nf6 {[%clk 0:02:55]} 2. Bg5 {[%clk 0:02:59]}  c5 {[%clk 0:02:55]} 3. Bxf6 {[%clk 0:02:55]}  gxf6 {[%clk 0:02:52]} 4. e3 {[%clk 0:02:53]}  Qb6 {[%clk 0:02:48]} 5. b3 {[%clk 0:02:41]}  cxd4 {[%clk 0:02:45]} 6. exd4 {[%clk 0:02:41]}  Nc6 {[%clk 0:02:45]} 7. Nf3 {[%clk 0:02:41]}  Bg7 {[%clk 0:02:45]} 8. c3 {[%clk 0:02:38]}  d5 {[%clk 0:02:38]} 9. Be2 {[%clk 0:02:12]}  Bg4 {[%clk 0:02:28]} 10. O-O {[%clk 0:02:08]}  e6 {[%clk 0:02:24]} 11. Nh4 {[%clk 0:02:03]}  Bxe2 {[%clk 0:02:20]} 12. Qxe2 {[%clk 0:02:03]}  O-O-O {[%clk 0:02:17]} 13. Nd2 {[%clk 0:01:58]}  Bh6 {[%clk 0:02:09]} 14. f4 {[%clk 0:01:53]}  Rhg8 {[%clk 0:02:05]} 15. Kh1 {[%clk 0:01:44]}  Bf8 {[%clk 0:01:54]} 16. b4 {[%clk 0:01:42]}  Kb8 {[%clk 0:01:47]} 17. a4 {[%clk 0:01:40]}  f5 {[%clk 0:01:44]} 18. Nhf3 {[%clk 0:01:32]}  Bd6 {[%clk 0:01:41]} 19. g3 {[%clk 0:01:31]}  Rc8 {[%clk 0:01:38]} 20. Nb3 {[%clk 0:01:29]}  Qd8 {[%clk 0:01:28]} 21. a5 {[%clk 0:01:24]}  a6 {[%clk 0:01:03]} 22. Rfb1 {[%clk 0:01:06]}  Na7 {[%clk 0:00:59]} 23. Nc5 {[%clk 0:01:04]}  Nb5 {[%clk 0:00:56]} 24. Qd3 {[%clk 0:01:00]}  Ka7 {[%clk 0:00:53]} 25. Nd2 {[%clk 0:00:58]}  h5 {[%clk 0:00:47]} 26. Nf3 {[%clk 0:00:42]}  Qc7 {[%clk 0:00:31]} 27. Rc1 {[%clk 0:00:33]}  Be7 {[%clk 0:00:29]} 28. Ne5 {[%clk 0:00:24]}  Bxc5 {[%clk 0:00:01]} 29. bxc5 {[%clk 0:00:24]}  h4 {[%clk 0:00:01]} 30. c4 {[%clk 0:00:23]} 1-0


[Site "https://www.chess.com"]

[Event "Titled Tuesday Blitz April 05 Late 2022"]
[White "Paravyan, David"]
[Black "Zhigalko, Sergei"]
[WhiteFideId "4194985"]
[BlackFideId "13502956"]
[WhiteElo "2569"]
[BlackElo "2662"]
[Result "0-1"]
[Round "09"]
[TimeControl "180+1"]
[Date "2022.04.05"]
[WhiteClock "0:00:04"]
[BlackClock "0:00:06"]

1. e4 {[%clk 0:03:00]}  c5 {[%clk 0:03:00]} 2. Nf3 {[%clk 0:03:01]}  Nc6 {[%clk 0:03:00]} 3. d4 {[%clk 0:03:01]}  cxd4 {[%clk 0:03:01]} 4. Nxd4 {[%clk 0:03:02]}  Nf6 {[%clk 0:03:02]} 5. Nc3 {[%clk 0:03:03]}  e5 {[%clk 0:03:02]} 6. Ndb5 {[%clk 0:03:03]}  d6 {[%clk 0:03:03]} 7. Nd5 {[%clk 0:03:04]}  Nxd5 {[%clk 0:03:02]} 8. exd5 {[%clk 0:03:05]}  Nb8 {[%clk 0:03:03]} 9. c4 {[%clk 0:03:06]}  Be7 {[%clk 0:03:03]} 10. c5 {[%clk 0:03:06]}  a6 {[%clk 0:03:00]} 11. cxd6 {[%clk 0:02:57]}  Bxd6 {[%clk 0:03:01]} 12. Nxd6+ {[%clk 0:02:53]}  Qxd6 {[%clk 0:03:02]} 13. Be3 {[%clk 0:02:48]}  O-O {[%clk 0:02:44]} 14. Rc1 {[%clk 0:02:47]}  Nd7 {[%clk 0:02:45]} 15. Bc4 {[%clk 0:02:31]}  b6 {[%clk 0:02:16]} 16. O-O {[%clk 0:02:29]}  Bb7 {[%clk 0:02:16]} 17. a3 {[%clk 0:02:06]}  Rfd8 {[%clk 0:02:13]} 18. Bg5 {[%clk 0:01:53]}  f6 {[%clk 0:02:08]} 19. Be3 {[%clk 0:01:50]}  Rac8 {[%clk 0:01:37]} 20. Qg4 {[%clk 0:01:49]}  Nf8 {[%clk 0:01:29]} 21. Ba2 {[%clk 0:01:48]}  Kh8 {[%clk 0:01:11]} 22. h4 {[%clk 0:01:44]}  b5 {[%clk 0:00:46]} 23. b4 {[%clk 0:01:42]}  Qd7 {[%clk 0:00:29]} 24. Qe4 {[%clk 0:01:30]}  Ng6 {[%clk 0:00:25]} 25. h5 {[%clk 0:01:25]}  Ne7 {[%clk 0:00:22]} 26. h6 {[%clk 0:01:25]}  Rxc1 {[%clk 0:00:10]} 27. Rxc1 {[%clk 0:01:19]}  Nxd5 {[%clk 0:00:09]} 28. Rd1 {[%clk 0:01:07]}  Qf7 {[%clk 0:00:08]} 29. Bb6 {[%clk 0:01:01]}  Rd7 {[%clk 0:00:09]} 30. hxg7+ {[%clk 0:00:47]}  Kxg7 {[%clk 0:00:07]} 31. Qg4+ {[%clk 0:00:37]}  Kh8 {[%clk 0:00:06]} 32. Bc5 {[%clk 0:00:37]}  Qg7 {[%clk 0:00:06]} 33. Qh5 {[%clk 0:00:04]}  Qg6 {[%clk 0:00:03]} 34. Qxg6 {[%clk 0:00:02]}  hxg6 {[%clk 0:00:03]} 35. g3 {[%clk 0:00:02]}  Kg7 {[%clk 0:00:03]} 36. Rd2 {[%clk 0:00:03]}  Kf7 {[%clk 0:00:02]} 37. f4 {[%clk 0:00:04]}  exf4 {[%clk 0:00:02]} 38. gxf4 {[%clk 0:00:05]}  Kg7 {[%clk 0:00:02]} 39. Kf2 {[%clk 0:00:05]}  Bc6 {[%clk 0:00:02]} 40. Kg3 {[%clk 0:00:06]}  Nc7 {[%clk 0:00:02]} 41. Re2 {[%clk 0:00:06]}  Bd5 {[%clk 0:00:02]} 42. Bb1 {[%clk 0:00:06]}  Bc4 {[%clk 0:00:03]} 43. Rg2 {[%clk 0:00:05]}  Nd5 {[%clk 0:00:03]} 44. Kf3 {[%clk 0:00:05]}  Ne7 {[%clk 0:00:03]} 45. Bxe7 {[%clk 0:00:05]}  Bd5+ {[%clk 0:00:04]} 46. Be4 {[%clk 0:00:04]}  Bxe4+ {[%clk 0:00:05]} 47. Kxe4 {[%clk 0:00:05]}  Rxe7+ {[%clk 0:00:05]} 48. Kd5 {[%clk 0:00:05]}  f5 {[%clk 0:00:06]} 49. Rc2 {[%clk 0:00:04]}  Re4 {[%clk 0:00:06]} 50. Rc6 {[%clk 0:00:03]}  Rxf4 {[%clk 0:00:05]} 51. Rxa6 {[%clk 0:00:04]}  Rf3 {[%clk 0:00:06]} 52. Ke5 {[%clk 0:00:03]}  Re3+ {[%clk 0:00:06]} 53. Kf4 {[%clk 0:00:02]}  Re4+ {[%clk 0:00:06]} 54. Kf3 {[%clk 0:00:03]}  Rc4 {[%clk 0:00:05]} 55. Ra5 {[%clk 0:00:02]}  Kf6 {[%clk 0:00:05]} 56. Rxb5 {[%clk 0:00:02]}  Rc3+ {[%clk 0:00:06]} 57. Kg2 {[%clk 0:00:02]}  Rxa3 {[%clk 0:00:06]} 58. Rc5 {[%clk 0:00:03]}  Rb3 {[%clk 0:00:05]} 59. b5 {[%clk 0:00:04]}  Kg5 {[%clk 0:00:05]} 60. Kf2 {[%clk 0:00:04]}  Kg4 {[%clk 0:00:05]} 61. Rc6 {[%clk 0:00:02]}  g5 {[%clk 0:00:06]} 62. b6 {[%clk 0:00:03]}  f4 {[%clk 0:00:06]} 63. Kg2 {[%clk 0:00:04]}  Rb2+ {[%clk 0:00:07]} 64. Kg1 {[%clk 0:00:04]}  Kg3 {[%clk 0:00:07]} 65. Rc1 {[%clk 0:00:04]}  Rxb6 {[%clk 0:00:06]} 0-1


[Site "https://www.chess.com"]

[Event "Titled Tuesday Blitz April 05 Late 2022"]
[White "Petrovic, Aleksa"]
[Black "Petrova, Irina"]
[WhiteFideId "967629"]
[BlackFideId "14124122"]
[WhiteElo "2473"]
[BlackElo "2265"]
[Result "1-0"]
[Round "09"]
[TimeControl "180+1"]
[Date "2022.04.06"]
[WhiteClock "0:00:02"]
[BlackClock "0:00:02"]

1. d4 {[%clk 0:02:55]}  d6 {[%clk 0:03:00]} 2. Nf3 {[%clk 0:02:55]}  g6 {[%clk 0:03:00]} 3. c4 {[%clk 0:02:54]}  Bg7 {[%clk 0:03:00]} 4. Nc3 {[%clk 0:02:53]}  Nc6 {[%clk 0:03:00]} 5. Bg5 {[%clk 0:02:46]}  Bg4 {[%clk 0:02:59]} 6. e3 {[%clk 0:02:21]}  Nf6 {[%clk 0:02:54]} 7. h3 {[%clk 0:02:15]}  Bf5 {[%clk 0:02:54]} 8. Bd3 {[%clk 0:02:10]}  Bxd3 {[%clk 0:02:26]} 9. Qxd3 {[%clk 0:02:11]}  O-O {[%clk 0:02:26]} 10. O-O {[%clk 0:02:00]}  h6 {[%clk 0:02:09]} 11. Bf4 {[%clk 0:01:42]}  Nd7 {[%clk 0:01:53]} 12. Rad1 {[%clk 0:01:27]}  e5 {[%clk 0:01:48]} 13. dxe5 {[%clk 0:01:24]}  Ndxe5 {[%clk 0:01:47]} 14. Nxe5 {[%clk 0:01:23]}  Nxe5 {[%clk 0:01:48]} 15. Qe2 {[%clk 0:01:23]}  c6 {[%clk 0:01:34]} 16. Ne4 {[%clk 0:01:15]}  d5 {[%clk 0:01:18]} 17. cxd5 {[%clk 0:01:11]}  cxd5 {[%clk 0:01:19]} 18. Nc3 {[%clk 0:01:10]}  Rc8 {[%clk 0:01:01]} 19. Rxd5 {[%clk 0:01:01]}  Qe7 {[%clk 0:01:00]} 20. Rfd1 {[%clk 0:00:56]}  Nc4 {[%clk 0:00:57]} 21. Nb5 {[%clk 0:00:42]}  Nxb2 {[%clk 0:00:52]} 22. Bd6 {[%clk 0:00:38]}  Qe4 {[%clk 0:00:41]} 23. Bxf8 {[%clk 0:00:36]}  Nxd1 {[%clk 0:00:40]} 24. Bxg7 {[%clk 0:00:31]}  Qxd5 {[%clk 0:00:38]} 25. Bd4 {[%clk 0:00:24]}  Rc1 {[%clk 0:00:31]} 26. Kh2 {[%clk 0:00:21]}  a6 {[%clk 0:00:27]} 27. Na3 {[%clk 0:00:10]}  Nc3 {[%clk 0:00:22]} 28. Qb2 {[%clk 0:00:07]}  Nxa2 {[%clk 0:00:20]} 29. Bh8 {[%clk 0:00:05]}  Qd6+ {[%clk 0:00:16]} 30. f4 {[%clk 0:00:05]}  f6 {[%clk 0:00:10]} 31. Bxf6 {[%clk 0:00:03]}  Qd1 {[%clk 0:00:04]} 32. Qxa2+ {[%clk 0:00:03]}  Kh7 {[%clk 0:00:02]} 33. Qf7# {[%clk 0:00:02]} 1-0


[Site "https://www.chess.com"]

[Event "Titled Tuesday Blitz April 05 Late 2022"]
[White "Pinheiro, Iung Alicio de O."]
[Black "Diaz Perez, Michel Alejandro"]
[WhiteFideId "2104350"]
[BlackFideId "3517179"]
[WhiteElo "2565"]
[BlackElo "2313"]
[Result "1-0"]
[Round "09"]
[TimeControl "180+1"]
[Date "2022.04.05"]
[WhiteClock "0:00:16"]
[BlackClock "0:00:18"]

1. c4 {[%clk 0:03:00]}  Nf6 {[%clk 0:02:58]} 2. g3 {[%clk 0:03:00]}  c6 {[%clk 0:02:56]} 3. Bg2 {[%clk 0:02:59]}  d5 {[%clk 0:02:57]} 4. Nf3 {[%clk 0:02:59]}  e6 {[%clk 0:02:57]} 5. O-O {[%clk 0:02:59]}  Be7 {[%clk 0:02:57]} 6. b3 {[%clk 0:02:59]}  O-O {[%clk 0:02:58]} 7. Bb2 {[%clk 0:02:59]}  Nbd7 {[%clk 0:02:57]} 8. d3 {[%clk 0:02:52]}  a5 {[%clk 0:02:56]} 9. Nc3 {[%clk 0:02:46]}  Re8 {[%clk 0:02:55]} 10. Qc2 {[%clk 0:02:43]}  b6 {[%clk 0:02:46]} 11. e4 {[%clk 0:02:43]}  dxe4 {[%clk 0:02:40]} 12. dxe4 {[%clk 0:02:41]}  e5 {[%clk 0:02:41]} 13. Na4 {[%clk 0:02:32]}  Qc7 {[%clk 0:02:40]} 14. Nh4 {[%clk 0:02:24]}  Nc5 {[%clk 0:02:37]} 15. Nxc5 {[%clk 0:02:23]}  Bxc5 {[%clk 0:02:38]} 16. Kh1 {[%clk 0:02:21]}  a4 {[%clk 0:02:21]} 17. Rae1 {[%clk 0:02:14]}  axb3 {[%clk 0:02:20]} 18. axb3 {[%clk 0:02:13]}  Bd7 {[%clk 0:02:01]} 19. Nf5 {[%clk 0:01:56]}  Ra2 {[%clk 0:01:57]} 20. Qb1 {[%clk 0:01:56]}  Rea8 {[%clk 0:01:56]} 21. h3 {[%clk 0:01:32]}  Be6 {[%clk 0:01:48]} 22. f4 {[%clk 0:01:27]}  Nd7 {[%clk 0:01:47]} 23. Nxg7 {[%clk 0:01:20]}  Kxg7 {[%clk 0:01:33]} 24. f5 {[%clk 0:01:20]}  Bd4 {[%clk 0:01:25]} 25. fxe6 {[%clk 0:01:07]}  fxe6 {[%clk 0:01:24]} 26. Bxd4 {[%clk 0:01:03]}  exd4 {[%clk 0:01:25]} 27. Qd1 {[%clk 0:01:03]}  Qxg3 {[%clk 0:01:22]} 28. Qxd4+ {[%clk 0:00:55]}  Ne5 {[%clk 0:01:05]} 29. Rg1 {[%clk 0:00:41]}  c5 {[%clk 0:01:02]} 30. Qd6 {[%clk 0:00:35]}  Kh8 {[%clk 0:00:59]} 31. Ref1 {[%clk 0:00:32]}  Rg8 {[%clk 0:00:55]} 32. Rf8 {[%clk 0:00:27]}  Kg7 {[%clk 0:00:30]} 33. Rxg8+ {[%clk 0:00:27]}  Kxg8 {[%clk 0:00:31]} 34. Qxe6+ {[%clk 0:00:24]}  Kf8 {[%clk 0:00:30]} 35. Rf1+ {[%clk 0:00:23]}  Kg7 {[%clk 0:00:30]} 36. Qe7+ {[%clk 0:00:21]}  Kh6 {[%clk 0:00:28]} 37. Qf8+ {[%clk 0:00:18]}  Kg5 {[%clk 0:00:18]} 38. Qf6+ {[%clk 0:00:15]}  Kh5 {[%clk 0:00:18]} 39. Rf5+ {[%clk 0:00:16]} 1-0


[Site "https://www.chess.com"]

[Event "Titled Tuesday Blitz April 05 Late 2022"]
[White "Romanchuk, Viktor"]
[Black "Koziorowicz, Michal"]
[WhiteFideId "14109271"]
[BlackFideId "21809194"]
[WhiteElo "2242"]
[BlackElo "2235"]
[Result "1/2-1/2"]
[Round "09"]
[TimeControl "180+1"]
[Date "2022.04.05"]
[WhiteClock "0:00:16"]
[BlackClock "0:00:28"]

1. d4 {[%clk 0:03:00]}  f5 {[%clk 0:02:59]} 2. Nc3 {[%clk 0:02:59]}  Nf6 {[%clk 0:03:00]} 3. Bg5 {[%clk 0:02:59]}  d5 {[%clk 0:03:00]} 4. f3 {[%clk 0:02:59]}  e6 {[%clk 0:02:53]} 5. e4 {[%clk 0:02:58]}  dxe4 {[%clk 0:02:50]} 6. fxe4 {[%clk 0:02:58]}  Be7 {[%clk 0:02:50]} 7. exf5 {[%clk 0:02:56]}  O-O {[%clk 0:02:35]} 8. Bc4 {[%clk 0:02:55]}  Nd5 {[%clk 0:02:35]} 9. Bxe7 {[%clk 0:02:38]}  Qxe7 {[%clk 0:02:36]} 10. Qe2 {[%clk 0:02:34]}  Nxc3 {[%clk 0:02:13]} 11. bxc3 {[%clk 0:02:35]}  Rxf5 {[%clk 0:02:13]} 12. Nf3 {[%clk 0:02:31]}  Nc6 {[%clk 0:02:11]} 13. O-O {[%clk 0:02:28]}  Bd7 {[%clk 0:02:11]} 14. Rae1 {[%clk 0:02:20]}  Raf8 {[%clk 0:01:53]} 15. Bxe6+ {[%clk 0:02:07]}  Bxe6 {[%clk 0:01:53]} 16. Qxe6+ {[%clk 0:02:07]}  Qxe6 {[%clk 0:01:53]} 17. Rxe6 {[%clk 0:02:07]}  Ra5 {[%clk 0:01:54]} 18. Ra1 {[%clk 0:01:35]}  Ra3 {[%clk 0:01:50]} 19. Re3 {[%clk 0:01:29]}  Rf5 {[%clk 0:01:46]} 20. Kf2 {[%clk 0:01:16]}  Rfa5 {[%clk 0:01:46]} 21. Ke2 {[%clk 0:01:07]}  Rxa2 {[%clk 0:01:46]} 22. Rxa2 {[%clk 0:01:08]}  Rxa2 {[%clk 0:01:47]} 23. d5 {[%clk 0:01:04]}  Na5 {[%clk 0:01:43]} 24. Kd3 {[%clk 0:00:57]}  Ra1 {[%clk 0:01:43]} 25. Re7 {[%clk 0:00:55]}  Rd1+ {[%clk 0:01:41]} 26. Ke4 {[%clk 0:00:50]}  c6 {[%clk 0:00:48]} 27. dxc6 {[%clk 0:00:49]}  bxc6 {[%clk 0:00:49]} 28. Rxa7 {[%clk 0:00:48]}  Nc4 {[%clk 0:00:50]} 29. Rc7 {[%clk 0:00:39]}  Nd2+ {[%clk 0:00:41]} 30. Nxd2 {[%clk 0:00:36]}  Rxd2 {[%clk 0:00:42]} 31. Kf3 {[%clk 0:00:32]}  Rd6 {[%clk 0:00:41]} 32. c4 {[%clk 0:00:31]}  h5 {[%clk 0:00:37]} 33. c5 {[%clk 0:00:28]}  Rg6 {[%clk 0:00:38]} 34. Rd7 {[%clk 0:00:24]}  Rg5 {[%clk 0:00:35]} 35. Rd4 {[%clk 0:00:20]}  Rxc5 {[%clk 0:00:34]} 36. c4 {[%clk 0:00:20]}  Kf7 {[%clk 0:00:35]} 37. Kf4 {[%clk 0:00:20]}  Ke6 {[%clk 0:00:34]} 38. h4 {[%clk 0:00:20]}  Rf5+ {[%clk 0:00:33]} 39. Ke3 {[%clk 0:00:20]}  Ra5 {[%clk 0:00:31]} 40. g4 {[%clk 0:00:20]}  Ra3+ {[%clk 0:00:23]} 41. Kf4 {[%clk 0:00:19]}  hxg4 {[%clk 0:00:19]} 42. Re4+ {[%clk 0:00:14]}  Kd6 {[%clk 0:00:19]} 43. Kxg4 {[%clk 0:00:15]}  Ra1 {[%clk 0:00:20]} 44. Kf5 {[%clk 0:00:13]}  Rg1 {[%clk 0:00:20]} 45. Rg4 {[%clk 0:00:13]}  Rxg4 {[%clk 0:00:18]} 46. Kxg4 {[%clk 0:00:14]}  Kc5 {[%clk 0:00:19]} 47. Kg5 {[%clk 0:00:15]}  Kxc4 {[%clk 0:00:19]} 48. Kg6 {[%clk 0:00:16]}  Kd5 {[%clk 0:00:19]} 49. Kxg7 {[%clk 0:00:17]}  c5 {[%clk 0:00:20]} 50. h5 {[%clk 0:00:17]}  c4 {[%clk 0:00:21]} 51. h6 {[%clk 0:00:18]}  c3 {[%clk 0:00:22]} 52. h7 {[%clk 0:00:19]}  c2 {[%clk 0:00:23]} 53. h8=Q {[%clk 0:00:20]}  c1=Q {[%clk 0:00:23]} 54. Qd8+ {[%clk 0:00:19]}  Ke4 {[%clk 0:00:24]} 55. Qe7+ {[%clk 0:00:19]}  Kf3 {[%clk 0:00:24]} 56. Qf6+ {[%clk 0:00:18]}  Kg4 {[%clk 0:00:25]} 57. Qg6+ {[%clk 0:00:18]}  Kf3 {[%clk 0:00:25]} 58. Qf5+ {[%clk 0:00:18]}  Ke2 {[%clk 0:00:26]} 59. Qe4+ {[%clk 0:00:17]}  Kf2 {[%clk 0:00:26]} 60. Qf5+ {[%clk 0:00:17]}  Kg3 {[%clk 0:00:26]} 61. Qg6+ {[%clk 0:00:17]}  Kf3 {[%clk 0:00:26]} 62. Qf5+ {[%clk 0:00:17]}  Kg2 {[%clk 0:00:26]} 63. Qg4+ {[%clk 0:00:17]}  Kf1 {[%clk 0:00:26]} 64. Qf3+ {[%clk 0:00:16]}  Kg1 {[%clk 0:00:26]} 65. Qg3+ {[%clk 0:00:17]}  Kf1 {[%clk 0:00:26]} 66. Qf3+ {[%clk 0:00:17]}  Ke1 {[%clk 0:00:26]} 67. Qh1+ {[%clk 0:00:16]}  Kd2 {[%clk 0:00:27]} 68. Qxc1+ {[%clk 0:00:16]}  Kxc1 {[%clk 0:00:28]} 1/2-1/2


[Site "https://www.chess.com"]